bitfinex-derivatives/quotes_SOLF0:USTF0_20251109
["timestamp","ask_amount","ask_price","bid_price","bid_amount"]
[1762673991452,0.04019264,159.09,159.07,4.88067215]
[1762673991655,0.04019264,159.09,159.08,10.67465351]
[1762673991856,3.16019264,159.09,159.08,4.88067215]
[1762673992260,3.16019264,159.09,159.06,0.04815718]
[1762673992562,3.16019264,159.09,159.07,4.90156694]
[1762673992760,8.7798,159.07,159.06,0.04815718]
[1762673992962,3.12,159.06,159.03,5.16160375]
[1762673993253,8.7805,159.05,159.04,4.90318135]
[1762673993653,3.12,159.05,158.98,7.8348291]
[1762673993855,3.12,159.04,158.97,7.8348291]
[1762673994156,3.16748922,159.02,158.99,0.0405523]
[1762673995161,5.662,159.01,158.99,0.0405523]
[1762673996469,5.662,159.01,158.99,7.8753814]
[1762673997363,3.12,159.0,158.99,7.8753814]
[1762673997567,5.662,159.01,158.99,7.8753814]
[1762673997956,8.782,159.01,158.99,7.8753814]
[1762673998156,3.12,159.0,158.99,7.8753814]
[1762673998860,3.12,159.0,158.99,0.0405523]
[1762673999362,3.12,159.0,158.99,7.8753814]
[1762673999961,18.91,159.42,159.14,88.0023]
[1762674000155,80.46,159.46,159.3,2.89834274]
[1762674000462,80.46,159.46,159.36,10.55217173]
[1762674000661,80.46,159.46,159.37,7.65382899]
[1762674000964,0.04364364,159.43,159.4,0.04175442]
[1762674001855,3.16364364,159.43,159.4,0.04175442]
[1762674005062,3.16364364,159.43,159.41,4.69802172]
[1762674005265,3.16364364,159.43,159.4,0.04175442]
[1762674005568,3.16364364,159.43,159.41,4.69023785]
[1762674005760,3.16364364,159.43,159.4,0.04175442]
[1762674005960,3.16364364,159.43,159.41,4.6900574]
[1762674006264,3.16364364,159.43,159.4,0.04175442]
[1762674006563,0.04364364,159.43,159.41,4.68253466]
[1762674006768,0.04364364,159.43,159.42,4.68253466]
[1762674007160,0.04364364,159.43,159.4,0.04175442]
[1762674007361,0.04364364,159.43,159.41,4.67607246]
[1762674007667,0.04364364,159.43,159.4,0.04175442]
[1762674007967,0.04364364,159.43,159.41,4.67488341]
[1762674008161,0.04364364,159.43,159.42,4.66875769]
[1762674008565,0.04364364,159.43,159.4,0.04175442]
[1762674027879,3.16364364,159.43,159.4,0.04175442]
[1762674029574,0.04364364,159.43,159.4,0.04175442]
[1762674037399,2.9,159.49,159.41,4.60352954]
[1762674037585,2.9,159.49,159.37,4.23256979]
[1762674037790,2.9,159.49,159.38,4.60799311]
[1762674037996,2.9,159.49,159.39,4.60799311]
[1762674038295,0.04504167,159.46,159.42,0.04002002]
[1762674038502,0.04504167,159.46,159.43,4.60799311]
[1762674041403,0.04504167,159.46,159.44,4.60799311]
[1762674041608,0.04504167,159.46,159.45,4.60799311]
[1762674043408,0.04504167,159.46,159.45,12.2618221]
[1762674044407,2.9,159.47,159.45,4.60799311]
[1762674044599,2.9,159.47,159.46,4.60799311]
[1762674044796,1.84560284,159.47,159.44,11.51393825]
[1762674045000,7.49120284,159.47,159.46,11.51393825]
[1762674045196,7.49120284,159.47,159.45,11.51393825]
[1762674045400,1.84560284,159.47,159.44,0.04030869]
[1762674046510,3.03,159.46,159.44,0.04030869]
[1762674047203,8.6763,159.45,159.44,0.04030869]
[1762674048205,3.03,159.45,159.44,0.04030869]
[1762674050610,4.87560284,159.45,159.44,0.04030869]
[1762674051119,3.03,159.4,159.37,7.67640057]
[1762674051307,3.03,159.38,159.34,7.67640057]
[1762674051504,1.84560284,159.37,159.32,7.67640057]
[1762674051812,82.17294397,159.5,159.29,215.95606612]
[1762674051813,3.03,159.32,159.29,215.95606612]
[1762674052006,4.87560284,159.31,159.29,215.95606612]
[1762674052311,3.03,159.31,159.29,215.95606612]
[1762674052511,3.03,159.3,159.29,215.95606612]
[1762674053609,3.07226286,159.32,159.29,215.95606612]
[1762674053811,3.07226286,159.32,159.3,5.75999866]
[1762674054315,3.07226286,159.32,159.29,215.95606612]
[1762674054516,3.07226286,159.32,159.29,221.71606478]
[1762674055318,3.07226286,159.32,159.29,215.95606612]
[1762674055707,3.07226286,159.32,159.28,0.045389]
[1762674055708,3.03,159.31,159.28,0.045389]
[1762674056211,8.6814,159.31,159.28,0.045389]
[1762674056415,3.03,159.3,159.28,0.045389]
[1762674057510,8.6818,159.3,159.28,0.045389]
[1762674057709,3.03,159.29,159.28,0.045389]
[1762674059019,3.03,159.29,159.21,11.41459866]
[1762674059816,3.03,159.28,159.19,11.41529866]
[1762674060015,3.07539756,159.25,159.22,0.04732808]
[1762674060211,3.07558171,159.25,159.22,0.04481544]
[1762674060815,0.04558171,159.25,159.22,0.04481544]
[1762674062912,0.04558171,159.25,159.23,5.6539]
[1762674063221,0.04558171,159.25,159.22,0.04481544]
[1762674063222,83.23,159.32,159.22,5.8048141]
[1762674063522,2.93,159.31,159.22,5.75999866]
[1762674063816,2.93,159.31,159.21,11.41449866]
[1762674064023,2.97532273,159.28,159.24,0.04491401]
[1762674068713,2.93,159.25,159.24,0.04491401]
[1762674068917,2.93,159.25,159.2,221.26529059]
[1762674069125,2.93,159.25,159.09,5.75999866]
[1762674069320,2.93,159.2,159.1,5.75999866]
[1762674069527,2.93,159.2,159.09,5.75999866]
[1762674070026,0.04550697,159.16,159.13,0.04106709]
[1762674071212,2.97550697,159.16,159.13,0.04106709]
[1762674072230,2.93,159.15,159.13,0.04106709]
[1762674072721,0.04550697,159.16,159.13,0.04106709]
[1762674074023,2.97550697,159.16,159.13,0.04106709]
[1762674084629,2.97550697,159.16,159.13,5.69856709]
[1762674085634,2.97550697,159.16,159.13,0.04106709]
[1762674090330,5.85548143,159.34,159.13,0.04106709]
[1762674090524,2.93,159.34,159.19,18.91]
[1762674090829,2.93,159.34,159.2,5.75999866]
[1762674091029,2.93,159.34,159.17,6.98880395]
[1762674091335,2.93,159.34,159.21,6.98880395]
[1762674091536,0.04472977,159.27,159.23,0.04759387]
[1762674091735,0.04438743,159.27,159.25,5.653]
[1762674093230,3.07,159.39,159.28,5.6519]
[1762674093432,3.07,159.39,159.21,12.74880261]
[1762674094132,3.07,159.38,159.28,5.6523]
[1762674094435,3.07,159.38,159.31,0.0409752]
[1762674098040,3.11034233,159.36,159.24,5.6535]
[1762674098241,3.07,159.36,159.24,5.6535]
[1762674099134,3.07,159.31,159.28,0.04447678]
[1762674102442,3.07,159.31,159.2,11.41479866]
[1762674102638,3.07,159.31,159.2,5.6548]
[1762674103644,3.07,159.26,159.24,0.03987277]
[1762674103845,3.07,159.26,159.23,0.0412917]
[1762674105143,80.5258,159.39,159.25,6.98880395]
[1762674105335,80.5258,159.39,159.29,12.74880261]
[1762674105539,80.5258,159.39,159.29,6.98880395]
[1762674105743,80.5258,159.39,159.29,12.74880261]
[1762674105939,80.5258,159.39,159.3,5.75999866]
[1762674106246,0.03927518,159.36,159.34,5.6502]
[1762674107750,3.04927518,159.36,159.33,0.04509155]
[1762674108140,3.01,159.35,159.23,5.75999866]
[1762674108341,3.01,159.35,159.26,5.653]
[1762674109141,3.01,159.31,159.29,0.04722845]
[1762674109444,3.01,159.31,159.28,0.04434534]
[1762674112653,0.04377578,159.32,159.28,0.04434534]
[1762674112846,80.5258,159.39,159.28,0.04434534]
[1762674113052,80.5258,159.39,159.28,5.75999866]
[1762674113252,80.5258,159.39,159.27,5.75999866]
[1762674113753,0.04059095,159.35,159.31,0.03999945]
[1762674114739,3.05059095,159.35,159.33,5.6502]
[1762674114944,3.05059095,159.35,159.31,0.03999945]
[1762674121356,0.04059095,159.35,159.31,0.03999945]
[1762674121554,3.05059095,159.35,159.32,5.6507]
[1762674121758,3.05059095,159.35,159.31,0.03999945]
[1762674123065,3.05059095,159.35,159.31,5.69109945]
[1762674127562,3.05059095,159.35,159.34,5.6502]
[1762674127563,0.04059095,159.35,159.34,5.6502]
[1762674129269,3.3658,159.39,159.37,5.6489]
[1762674129270,0.1658,159.39,159.37,5.6489]
[1762674129473,3.3658,159.39,159.3,5.70268148]
[1762674129969,3.3658,159.39,159.33,5.6505]
[1762674130372,3.3658,159.39,159.34,0.04510238]
[1762674132576,3.2,159.37,159.34,0.04510238]
[1762674133679,3.2,159.36,159.26,5.70268148]
[1762674134274,0.1658,159.39,159.23,7.67640057]
[1762674134275,3.2,159.32,159.25,5.70268148]
[1762674134478,3.2,159.32,159.23,5.70268148]
[1762674134678,3.2,159.28,159.26,0.04722848]
[1762674135976,0.04068152,159.29,159.26,0.04722848]
[1762674136173,0.04068152,159.29,159.26,11.40280996]
[1762674136371,0.04068152,159.29,159.27,5.70268148]
[1762674136577,3.3658,159.39,159.27,6.96268148]
[1762674136877,3.3658,159.39,159.37,5.70268148]
[1762674136878,0.1658,159.39,159.37,5.70268148]
[1762674137781,3.2,159.48,159.37,7.67640057]
[1762674137982,3.2,159.48,159.41,0.04468633]
[1762674140079,3.2,159.46,159.41,0.04468633]
[1762674141078,3.2,159.46,159.41,5.69208633]
[1762674143374,3.2,159.46,159.41,0.04468633]
[1762674154998,3.2,159.46,159.41,5.69228633]
[1762674157002,3.2,159.46,159.41,0.04468633]
[1762674157701,3.2,159.46,159.43,5.6469]
[1762674158096,3.2,159.46,159.41,0.04468633]
[1762674158298,3.2,159.46,159.41,5.69208633]
[1762674159102,3.2,159.46,159.42,5.6473]
[1762674164401,3.2,159.46,159.41,0.04468633]
[1762674164402,2.91,159.49,159.41,0.04468633]
[1762674164597,2.91,159.49,159.41,5.76551692]
[1762674165199,2.91,159.49,159.43,5.6469]
[1762674165404,2.91,159.49,159.44,0.04090599]
[1762674168204,3.0,159.48,159.44,0.04090599]
[1762674173507,3.0,159.47,159.44,0.04090599]
[1762674174409,3.0,159.45,159.44,0.04090599]
[1762674184618,3.0,159.45,159.44,5.81434443]
[1762674184819,3.0,159.45,159.44,0.04090599]
[1762674185517,3.0,159.45,159.44,5.81434443]
[1762674188331,3.0,159.45,159.44,0.04090599]
[1762674188735,3.0,159.45,159.44,5.81434443]
[1762674190034,3.0,159.45,159.39,11.51393825]
[1762674190035,3.0,159.45,159.42,5.77520315]
[1762674190225,3.0,159.45,159.4,2.65]
[1762674191134,3.11,159.43,159.41,5.69519913]
[1762674191721,3.11,159.43,159.41,0.04749913]
[1762674191925,4.95672574,159.42,159.41,0.04749913]
[1762674192136,3.11,159.39,159.34,222.26772054]
[1762674193032,3.11,159.37,159.35,0.04382585]
[1762674193339,3.11,159.37,159.34,222.30977831]
[1762674194036,3.11,159.35,159.34,0.04205777]
[1762674194234,3.11,159.35,159.28,2.7]
[1762674194633,3.11,159.34,159.28,2.7]
[1762674195135,3.11,159.32,159.29,0.04065872]
[1762674195330,3.11,159.32,159.29,2.74065872]
[1762674196636,3.11,159.32,159.29,0.04065872]
[1762674200638,3.11,159.31,159.29,0.04065872]
[1762674203840,3.11,159.3,159.29,0.04065872]
[1762674204438,3.11,159.28,159.2,928.72326766]
[1762674204838,3.11,159.28,159.21,2.74]
[1762674205449,3.11,159.25,159.23,0.04214247]
[1762674205644,3.11,159.25,159.22,0.0420133]
[1762674207249,3.11,159.25,159.22,2.7820133]
[1762674208350,3.11,159.25,159.22,0.0420133]
[1762674218155,8.7634,159.25,159.22,0.0420133]
[1762674218355,2.92,159.24,159.22,0.0420133]
[1762674219761,2.92,159.41,159.25,2.74]
[1762674220058,2.92,159.32,159.25,8.3933]
[1762674220250,2.92,159.32,159.25,2.74]
[1762674220661,2.96680458,159.3,159.27,0.04636451]
[1762674220852,2.96739443,159.3,159.27,0.04700582]
[1762674226061,2.93,159.29,159.27,0.04700582]
[1762674226962,8.5821,159.29,159.27,0.04700582]
[1762674227164,2.93,159.28,159.27,0.04700582]
[1762674228162,2.93,159.26,159.22,2.74]
[1762674228354,2.93,159.26,159.2,926.02326766]
[1762674228761,2.93,159.24,159.2,928.76326766]
[1762674228956,2.97218111,159.24,159.2,928.81166147]
[1762674231265,8.62598111,159.24,159.2,926.07166147]
[1762674231466,2.93,159.23,159.2,926.07166147]
[1762674232272,8.5842,159.23,159.2,926.07166147]
[1762674232464,2.93,159.22,159.2,926.07166147]
[1762674235077,8.5845,159.22,159.2,926.07166147]
[1762674237974,2.93,159.21,159.2,926.07166147]
[1762674239479,5.6545,159.22,159.2,926.07166147]
[1762674240170,8.5845,159.22,159.2,926.07166147]
[1762674240373,5.69608111,159.24,159.21,2.74]
[1762674240566,2.97218111,159.24,159.21,2.74]
[1762674241876,3.1,159.23,159.2,926.07166147]
[1762674242973,5.6545,159.22,159.2,928.81166147]
[1762674243173,3.1,159.29,159.21,2.74]
[1762674243371,3.1,159.32,159.23,2.74]
[1762674244379,0.04570767,159.29,159.26,2.78403137]
[1762674250189,3.14570767,159.29,159.26,0.04403137]
[1762674251180,3.14570767,159.29,159.2,928.76326766]
[1762674251380,8.7534,159.25,159.21,2.74]
[1762674252182,8.79740361,159.25,159.21,2.78565074]
[1762674252385,3.14400361,159.25,159.21,2.78565074]
[1762674254189,8.79750361,159.25,159.21,2.78565074]
[1762674254890,3.1,159.24,159.21,2.78565074]
[1762674255592,3.1,159.24,159.21,0.04565074]
[1762674256688,8.7538,159.24,159.21,0.04565074]
[1762674256996,3.1,159.23,159.21,0.04565074]
[1762674257694,8.7542,159.23,159.21,0.04565074]
[1762674260987,5.6542,159.23,159.22,2.74]
[1762674261190,8.79760361,159.25,159.22,2.74]
[1762674261494,3.14400361,159.25,159.22,2.74]
[1762674262793,0.04400361,159.25,159.23,2.74]
[1762674266491,3.1,159.35,159.31,2.7]
[1762674266689,3.1,159.35,159.3,1.85102819]
[1762674266995,3.1,159.34,159.3,4.55102819]
[1762674267301,3.1,159.34,159.32,1.85102819]
[1762674267690,0.04274254,159.35,159.33,2.7]
[1762674267892,0.04274254,159.35,159.34,1.85102819]
[1762674268086,0.04274254,159.35,159.31,0.04154906]
[1762674268391,3.14274254,159.35,159.33,1.85102819]
[1762674270791,3.14274254,159.35,159.32,2.7]
[1762674274191,3.14,159.34,159.31,0.04154906]
[1762674277303,3.14,159.33,159.31,0.04154906]
[1762674291315,2.98,159.32,159.31,0.04154906]
[1762674300421,11.2976,159.38,159.31,2.74154906]
[1762674300422,2.98,159.38,159.31,2.74154906]
[1762674300730,2.98,159.38,159.33,2.7]
[1762674301521,3.06157653,159.37,159.33,2.7]
[1762674301727,3.06157653,159.37,159.33,2.74831583]
[1762674302123,3.02,159.43,159.36,1.85102819]
[1762674302319,3.02,159.46,159.4,4.55102819]
[1762674302524,3.02,159.46,159.41,2.7]
[1762674302725,5.6465,159.45,159.41,2.7]
[1762674302932,3.02,159.45,159.42,4.55102819]
[1762674303135,3.06210054,159.45,159.42,1.89513263]
[1762674303334,3.06210054,159.45,159.42,0.04410444]
[1762674303335,3.02,159.43,159.42,0.04410444]
[1762674303534,5.6468,159.44,159.42,2.74410444]
[1762674303739,8.6668,159.44,159.42,0.04410444]
[1762674304134,3.02,159.43,159.42,0.04410444]
[1762674304633,3.02,159.44,159.42,0.04410444]
[1762674305424,0.04210054,159.45,159.42,2.74410444]
[1762674305735,5.68850054,159.45,159.42,2.74410444]
[1762674306235,8.70850054,159.45,159.42,2.74410444]
[1762674307239,8.6668,159.44,159.42,0.04410444]
[1762674310035,0.04210054,159.45,159.43,2.7]
[1762674311031,3.06210054,159.45,159.43,2.7]
[1762674311237,3.02,159.43,159.42,0.04410444]
[1762674314336,3.02,159.4,159.33,8.44168624]
[1762674314539,3.02,159.39,159.33,2.7]
[1762674314934,4.87102819,159.42,159.33,2.7]
[1762674315134,1.89294397,159.5,159.36,2.7]
[1762674315135,3.02,159.45,159.36,2.7]
[1762674315336,0.04427173,159.42,159.39,2.74301272]
[1762674316841,3.02,159.41,159.39,0.04301272]
[1762674317236,8.6678,159.41,159.39,0.04301272]
[1762674317541,3.02,159.4,159.39,0.04301272]
[1762674318345,5.6478,159.41,159.39,2.74301272]
[1762674318545,8.6678,159.41,159.39,0.04301272]
[1762674320237,5.6478,159.41,159.39,0.04301272]
[1762674322845,3.02,159.4,159.39,0.04301272]
[1762674333450,2.92,159.37,159.32,208.41432544]
[1762674333657,2.92,159.37,159.33,2.7]
[1762674334258,2.96527146,159.37,159.33,2.74084767]
[1762674334947,8.5696,159.36,159.33,2.74084767]
[1762674342266,2.92,159.35,159.33,2.74084767]
[1762674342659,2.92,159.35,159.33,0.04084767]
[1762674344357,2.92,159.35,159.33,2.74084767]
[1762674347458,2.92,159.35,159.33,0.04084767]
[1762674350969,2.92,159.35,159.33,2.74084767]
[1762674363477,0.04527146,159.37,159.33,2.74084767]
[1762674363972,2.94527146,159.37,159.33,2.74084767]
[1762674364170,2.9,159.36,159.33,2.74084767]
[1762674365679,5.69437146,159.37,159.33,2.74084767]
[1762674366188,2.94527146,159.37,159.33,2.74084767]
[1762674368690,0.04527146,159.37,159.34,10.34716955]
[1762674368889,0.04527146,159.37,159.35,2.68]
[1762674369089,0.04527146,159.37,159.35,8.3297]
[1762674369286,2.9,159.46,159.37,2.68]
[1762674369589,2.9,159.46,159.43,2.68]
[1762674370286,0.0471033,159.46,159.43,8.50236139]
[1762674370485,0.0471033,159.46,159.44,2.68]
[1762674372279,0.0471033,159.46,159.45,2.68]
[1762674372476,4.79294397,159.5,159.45,2.68]
[1762674373490,0.04270592,159.49,159.45,2.68]
[1762674375485,2.94270592,159.49,159.43,2.7257783]
[1762674375790,2.94270592,159.49,159.43,8.50236139]
[1762674375998,2.9,159.48,159.43,0.0457783]
[1762674376389,2.9,159.48,159.43,2.7257783]
[1762674376589,2.9,159.48,159.43,0.0457783]
[1762674376790,0.04270592,159.49,159.43,0.0457783]
[1762674376791,2.9,159.46,159.43,0.0457783]
[1762674378087,2.9,159.44,159.43,0.0457783]
[1762674378394,2.94282192,159.45,159.43,0.0457783]
[1762674378893,0.04282192,159.45,159.43,2.7257783]
[1762674380598,4.79294397,159.5,159.46,2.68]
[1762674380992,4.79294397,159.5,159.46,2.7266409]
[1762674382792,2.9,159.49,159.46,2.7266409]
[1762674383098,2.9,159.49,159.46,0.0466409]
[1762674383594,2.9,159.49,159.46,2.7266409]
[1762674387085,2.9,159.49,159.46,0.0466409]
[1762674388197,2.9,159.49,159.46,2.7266409]
[1762674389596,1.89294397,159.5,159.46,2.7266409]
[1762674390200,4.79294397,159.5,159.46,2.7266409]
[1762674390397,1.89294397,159.5,159.47,2.68]
[1762674391099,1.89294397,159.5,159.48,2.68]
[1762674393705,1.89294397,159.5,159.49,1.84617739]
[1762674393896,1.89294397,159.5,159.49,4.53617739]
[1762674394303,8.7322,159.57,159.51,2.69]
[1762674394601,8.7322,159.57,159.52,2.73461324]
[1762674394602,3.09,159.56,159.52,2.73461324]
[1762674394797,5.6422,159.57,159.52,2.73461324]
[1762674394798,3.09,159.55,159.52,0.04461324]
[1762674396100,3.09,159.54,159.52,0.04461324]
[1762674397101,3.09,159.53,159.52,0.04461324]
[1762674398097,3.09,159.51,159.47,1.84617739]
[1762674398300,3.09,159.51,159.46,8.3359]
[1762674398508,3.09,159.51,159.46,5.6459]
[1762674398705,3.09,159.5,159.44,5.6465]
[1762674399104,0.04168761,159.49,159.45,0.04487021]
[1762674399305,3.09,159.48,159.45,0.04487021]
[1762674399501,3.09,159.48,159.45,8.38097021]
[1762674399701,3.13168761,159.49,159.46,2.69]
[1762674399911,3.13168761,159.49,159.45,0.04487021]
[1762674401113,3.09,159.47,159.45,0.04487021]
[1762674401806,8.7357,159.47,159.45,0.04487021]
[1762674402017,3.09,159.45,159.36,4.53617739]
[1762674402608,3.09,159.42,159.36,4.53617739]
[1762674403007,3.09,159.4,159.37,0.04686493]
[1762674404817,3.09,159.4,159.37,2.73686493]
[1762674405313,3.15587878,159.41,159.37,2.73686493]
[1762674406218,0.04587878,159.41,159.37,2.73686493]
[1762674407117,0.04587878,159.41,159.37,8.38576493]
[1762674407323,0.04587878,159.41,159.38,2.7]
[1762674407708,0.04587878,159.41,159.38,768.63804452]
[1762674407910,0.04587878,159.41,159.39,2.7]
[1762674408116,0.04587878,159.41,159.38,765.93804452]
[1762674408117,3.15587878,159.41,159.38,765.93804452]
[1762674408614,3.11,159.39,159.38,765.93804452]
[1762674410417,3.15587878,159.41,159.38,765.93804452]
[1762674412022,8.80367878,159.41,159.38,765.93804452]
[1762674412213,3.11,159.4,159.38,765.93804452]
[1762674412915,8.7582,159.4,159.38,765.93804452]
[1762674413117,3.11,159.39,159.38,765.93804452]
[1762674433137,8.6182,159.4,159.38,765.93804452]
[1762674433334,2.97,159.39,159.38,690.78173486]
[1762674433631,2.97,159.39,159.38,676.96423486]
[1762674433834,4.23,159.39,159.38,600.20703486]
[1762674434028,5.6488,159.38,159.37,0.04686493]
[1762674434227,6.9088,159.38,159.37,0.04686493]
[1762674434540,7.49497739,159.38,159.37,0.04686493]
[1762674434736,5.6488,159.38,159.37,0.04686493]
[1762674437538,6.9088,159.38,159.37,0.04686493]
[1762674437931,5.6505,159.33,159.28,2.92]
[1762674438142,2.88877442,159.39,159.25,2.92]
[1762674438346,109.58707442,159.39,159.25,2.92]
[1762674438637,5.6499,159.35,159.25,2.92]
[1762674439144,0.03968337,159.32,159.28,0.04823059]
[1762674439638,5.6522,159.29,159.28,0.04823059]
[1762674447936,5.6544,159.23,159.21,2.92]
[1762674450941,5.6544,159.23,159.2,0.03962491]
[1762674450942,0.04180554,159.24,159.2,2.95962491]
[1762674451940,5.69580554,159.24,159.2,2.95962491]
[1762674452141,0.04180554,159.24,159.2,2.95962491]
[1762674453036,11.3006,159.34,159.23,3.02]
[1762674453836,24.66976648,159.39,159.25,3.02]
[1762674454042,0.04813997,159.34,159.3,0.04836126]
[1762674454247,5.6514,159.31,159.3,0.04836126]
[1762674462451,0.04813997,159.34,159.3,0.04836126]
[1762674464052,5.651,159.32,159.3,0.04836126]
[1762674465658,5.651,159.32,159.3,3.14836126]
[1762674474263,5.69853997,159.34,159.3,3.14836126]
[1762674475471,5.6506,159.33,159.3,3.14836126]
[1762674475867,0.04813997,159.34,159.3,3.14836126]
[1762674476171,5.6509,159.32,159.3,3.14836126]
[1762674482866,0.04813997,159.34,159.3,3.14836126]
[1762674483276,5.651,159.32,159.3,0.04836126]
[1762674485076,5.651,159.32,159.3,3.11836126]
[1762674489482,0.04813997,159.34,159.3,3.11836126]
[1762674490985,5.6505,159.33,159.31,3.07]
[1762674491485,0.04813997,159.34,159.31,3.07]
[1762674492586,5.69833997,159.34,159.31,3.07]
[1762674496489,0.04813997,159.34,159.31,8.7211]
[1762674496688,0.04813997,159.34,159.32,3.07]
[1762674497585,5.69833997,159.34,159.32,3.07]
[1762674498485,5.6484,159.39,159.36,3.07]
[1762674498691,1.8492047,159.41,159.36,3.07]
[1762674499491,1.8492047,159.41,159.35,5.6496]
[1762674499492,0.04270832,159.4,159.37,3.1123628]
[1762674499992,5.6485,159.39,159.37,3.1123628]
[1762674501588,0.04270832,159.4,159.37,3.1123628]
[1762674503094,5.69080832,159.4,159.37,3.1123628]
[1762674503894,0.04270832,159.4,159.37,3.1123628]
[1762674504487,0.04270832,159.4,159.38,5.6487]
[1762674504695,0.04270832,159.4,159.39,3.07]
[1762674507187,5.6461,159.46,159.4,3.07]
[1762674507404,1.8492047,159.45,159.4,3.07]
[1762674508094,1.8492047,159.45,159.41,3.07]
[1762674508298,0.04472232,159.44,159.41,3.11072549]
[1762674508797,5.69152232,159.44,159.41,3.11072549]
[1762674513298,0.04472232,159.44,159.41,3.11072549]
[1762674515196,0.04472232,159.44,159.41,8.75822549]
[1762674515502,0.04472232,159.44,159.42,2.88]
[1762674515995,0.04472232,159.44,159.43,2.88]
[1762674516801,1.8492047,159.49,159.45,2.88]
[1762674517298,1.8492047,159.5,159.45,2.88]
[1762674517697,5.6449,159.49,159.45,2.88]
[1762674517891,5.6449,159.49,159.47,2.88]
[1762674524500,1.8492047,159.48,159.47,2.88]
[1762674524702,7.4945047,159.48,159.46,0.04079847]
[1762674525807,1.8492047,159.48,159.46,3.06079847]
[1762674526707,7.4945047,159.48,159.46,3.06079847]
[1762674529009,7.4945047,159.48,159.46,0.04079847]
[1762674536112,5.6453,159.48,159.46,3.06079847]
[1762674539015,5.6447,159.5,159.47,3.02]
[1762674539220,2.94060988,159.51,159.47,3.02]
[1762674539409,1.8492047,159.51,159.47,3.02]
[1762674539719,5.6435,159.53,159.49,3.02]
[1762674539914,5.6435,159.53,159.49,3.0659857]
[1762674540421,8.58335588,159.55,159.5,3.02]
[1762674540620,7.4921047,159.55,159.5,3.02]
[1762674541717,1.8492047,159.55,159.49,0.0459857]
[1762674541914,1.8492047,159.55,159.38,11.2972]
[1762674541915,1.8492047,159.51,159.44,2.89]
[1762674542115,1.8492047,159.45,159.39,2.89]
[1762674542315,8.86999277,159.57,159.39,2.89]
[1762674542316,1.8492047,159.43,159.39,2.89]
[1762674542524,5.83043246,159.56,159.39,2.89]
[1762674542714,1.8492047,159.51,159.44,2.89]
[1762674542911,0.04372338,159.49,159.47,2.89]
[1762674543112,0.0445323,159.5,159.47,2.89]
[1762674545713,0.0445323,159.5,159.47,8.5354]
[1762674545919,5.6428,159.55,159.48,2.89]
[1762674546118,5.6428,159.55,159.49,1.8492047]
[1762674546421,5.6428,159.55,159.5,2.89]
[1762674546722,5.6432,159.54,159.5,2.89]
[1762674547224,5.6432,159.54,159.5,2.93734932]
[1762674547723,5.6436,159.53,159.5,0.04734932]
[1762674548023,1.8492047,159.54,159.5,0.04734932]
[1762674549127,5.644,159.52,159.5,0.04734932]
[1762674550626,7.4932047,159.52,159.5,0.04734932]
[1762674551326,7.4925047,159.54,159.5,2.93734932]
[1762674554326,5.6437,159.53,159.5,0.04734932]
[1762674554526,1.8492047,159.52,159.5,0.04734932]
[1762674555929,7.4931047,159.52,159.5,0.04734932]
[1762674558538,5.6439,159.52,159.5,0.04734932]
[1762674563839,2.88361936,159.51,159.44,2.89]
[1762674564041,2.88361936,159.48,159.41,2.89]
[1762674564431,5.646,159.46,159.41,2.89]
[1762674564741,0.04506756,159.45,159.43,2.89]
[1762674565439,0.04506756,159.45,159.42,2.93046721]
[1762674566436,5.69146756,159.45,159.42,2.93046721]
[1762674568440,5.69146756,159.45,159.42,0.04046721]
[1762674569434,5.69146756,159.45,159.42,2.93046721]
[1762674569841,5.69146756,159.45,159.42,0.04046721]
[1762674569842,5.6468,159.44,159.42,0.04046721]
[1762674571937,0.04506756,159.45,159.42,0.04046721]
[1762674572137,0.04506756,159.45,159.42,2.98046721]
[1762674572946,5.69146756,159.45,159.42,2.98046721]
[1762674578044,5.6467,159.44,159.42,2.98046721]